[Event "Titled Tuesday Blitz May 24 Late 2022"]
[White "Vujic, Mihailo"]
[Black "Hasangatin, Ramil"]
[WhiteFideId "918873"]
[BlackFideId "4122160"]
[WhiteElo "2256"]
[BlackElo "2399"]
[Result "0-1"]
[Round "08"]
[TimeControl "180+1"]
[Date "2022.05.24"]
[WhiteClock "0:00:13"]
[BlackClock "0:01:29"]

1. e4 {[%clk 0:02:58]}  d5 {[%clk 0:02:59]} 2. exd5 {[%clk 0:02:58]}  Qxd5 {[%clk 0:03:00]} 3. Nf3 {[%clk 0:02:58]}  Bg4 {[%clk 0:02:59]} 4. Be2 {[%clk 0:02:58]}  Nc6 {[%clk 0:03:00]} 5. d4 {[%clk 0:02:59]}  O-O-O {[%clk 0:03:00]} 6. Be3 {[%clk 0:02:59]}  e5 {[%clk 0:03:00]} 7. c4 {[%clk 0:03:00]}  Qa5+ {[%clk 0:03:00]} 8. Bd2 {[%clk 0:02:58]}  Bb4 {[%clk 0:03:00]} 9. d5 {[%clk 0:02:59]}  Bxf3 {[%clk 0:03:00]} 10. Bxf3 {[%clk 0:02:58]}  Nd4 {[%clk 0:03:00]} 11. Nc3 {[%clk 0:02:52]}  Qa6 {[%clk 0:02:57]} 12. b3 {[%clk 0:02:38]}  Qa5 {[%clk 0:02:57]} 13. Rc1 {[%clk 0:02:33]}  f5 {[%clk 0:02:55]} 14. O-O {[%clk 0:02:29]}  Nf6 {[%clk 0:02:54]} 15. a4 {[%clk 0:02:15]}  Rhe8 {[%clk 0:02:34]} 16. g3 {[%clk 0:02:05]}  Kb8 {[%clk 0:02:31]} 17. Bg2 {[%clk 0:02:04]}  e4 {[%clk 0:02:16]} 18. Nb1 {[%clk 0:01:37]}  Bxd2 {[%clk 0:02:09]} 19. Nxd2 {[%clk 0:01:37]}  c5 {[%clk 0:02:09]} 20. Nb1 {[%clk 0:01:21]}  Ng4 {[%clk 0:01:59]} 21. h3 {[%clk 0:01:19]}  Ne5 {[%clk 0:01:59]} 22. Nc3 {[%clk 0:01:17]}  Nd3 {[%clk 0:01:52]} 23. Nb5 {[%clk 0:01:09]}  Nxc1 {[%clk 0:01:51]} 24. Nxd4 {[%clk 0:01:00]}  cxd4 {[%clk 0:01:52]} 25. Qxc1 {[%clk 0:01:00]}  e3 {[%clk 0:01:48]} 26. fxe3 {[%clk 0:00:59]}  dxe3 {[%clk 0:01:48]} 27. Kh2 {[%clk 0:00:46]}  e2 {[%clk 0:01:48]} 28. Re1 {[%clk 0:00:45]}  Re3 {[%clk 0:01:40]} 29. Qxe3 {[%clk 0:00:38]}  Qxe1 {[%clk 0:01:39]} 30. Qe5+ {[%clk 0:00:38]}  Ka8 {[%clk 0:01:38]} 31. d6 {[%clk 0:00:37]}  Qf2 {[%clk 0:01:34]} 32. Qe7 {[%clk 0:00:32]}  Rb8 {[%clk 0:01:33]} 33. d7 {[%clk 0:00:23]}  e1=Q {[%clk 0:01:33]} 34. d8=Q {[%clk 0:00:13]}  Qxg3# {[%clk 0:01:29]} 0-1


[Site "https://www.chess.com"]

[Event "Titled Tuesday Blitz May 24 Late 2022"]
[White "Winkels, Marcel"]
[Black "Sarkar, Justin"]
[WhiteFideId "1003887"]
[BlackFideId "2010011"]
[WhiteElo "1900"]
[BlackElo "2020"]
[Result "1-0"]
[Round "08"]
[TimeControl "180+1"]
[Date "2022.05.25"]
[WhiteClock "0:00:22"]
[BlackClock "0:00:01"]

1. e4 {[%clk 0:03:00]}  c5 {[%clk 0:02:57]} 2. Nc3 {[%clk 0:02:59]}  Nc6 {[%clk 0:02:56]} 3. Bb5 {[%clk 0:02:58]}  Nd4 {[%clk 0:02:53]} 4. Nf3 {[%clk 0:02:57]}  Nf6 {[%clk 0:02:48]} 5. e5 {[%clk 0:02:54]}  Nxb5 {[%clk 0:02:47]} 6. Nxb5 {[%clk 0:02:53]}  Nd5 {[%clk 0:02:46]} 7. c4 {[%clk 0:02:53]}  Nc7 {[%clk 0:02:43]} 8. Nc3 {[%clk 0:02:43]}  d6 {[%clk 0:02:37]} 9. d4 {[%clk 0:02:31]}  dxe5 {[%clk 0:02:20]} 10. dxe5 {[%clk 0:02:23]}  Qxd1+ {[%clk 0:02:20]} 11. Nxd1 {[%clk 0:02:22]}  Bg4 {[%clk 0:02:16]} 12. Be3 {[%clk 0:02:17]}  Ne6 {[%clk 0:01:56]} 13. Nc3 {[%clk 0:02:12]}  Bxf3 {[%clk 0:01:50]} 14. gxf3 {[%clk 0:02:10]}  O-O-O {[%clk 0:01:49]} 15. O-O {[%clk 0:02:05]}  g6 {[%clk 0:01:37]} 16. f4 {[%clk 0:02:03]}  h5 {[%clk 0:01:24]} 17. Nd5 {[%clk 0:01:56]}  b6 {[%clk 0:01:13]} 18. a3 {[%clk 0:01:55]}  Nc7 {[%clk 0:01:07]} 19. Rfd1 {[%clk 0:01:53]}  e6 {[%clk 0:00:59]} 20. Nf6 {[%clk 0:01:40]}  Be7 {[%clk 0:00:49]} 21. Ne4 {[%clk 0:01:37]}  Rxd1+ {[%clk 0:00:45]} 22. Rxd1 {[%clk 0:01:34]}  Rd8 {[%clk 0:00:45]} 23. Rxd8+ {[%clk 0:01:16]}  Kxd8 {[%clk 0:00:46]} 24. Kf1 {[%clk 0:01:16]}  Kd7 {[%clk 0:00:42]} 25. Ke2 {[%clk 0:01:15]}  Ne8 {[%clk 0:00:39]} 26. Kd3 {[%clk 0:01:13]}  Ng7 {[%clk 0:00:37]} 27. h3 {[%clk 0:01:09]}  Nf5 {[%clk 0:00:36]} 28. Nc3 {[%clk 0:01:03]}  Kc6 {[%clk 0:00:33]} 29. Nb5 {[%clk 0:01:02]}  a6 {[%clk 0:00:30]} 30. Nc3 {[%clk 0:01:02]}  b5 {[%clk 0:00:20]} 31. b3 {[%clk 0:00:51]}  Bf8 {[%clk 0:00:13]} 32. Ne4 {[%clk 0:00:50]}  Be7 {[%clk 0:00:11]} 33. Nc3 {[%clk 0:00:48]}  Bf8 {[%clk 0:00:09]} 34. Bd2 {[%clk 0:00:46]}  Be7 {[%clk 0:00:08]} 35. Ne4 {[%clk 0:00:46]}  Nh4 {[%clk 0:00:06]} 36. a4 {[%clk 0:00:39]}  b4 {[%clk 0:00:06]} 37. Be3 {[%clk 0:00:38]}  Nf5 {[%clk 0:00:05]} 38. Ng3 {[%clk 0:00:34]}  Nxg3 {[%clk 0:00:03]} 39. fxg3 {[%clk 0:00:34]}  Bf8 {[%clk 0:00:03]} 40. Ke4 {[%clk 0:00:34]}  Be7 {[%clk 0:00:03]} 41. g4 {[%clk 0:00:33]}  hxg4 {[%clk 0:00:03]} 42. hxg4 {[%clk 0:00:33]}  Bd8 {[%clk 0:00:03]} 43. f5 {[%clk 0:00:33]}  gxf5+ {[%clk 0:00:03]} 44. gxf5 {[%clk 0:00:33]}  Be7 {[%clk 0:00:02]} 45. fxe6 {[%clk 0:00:26]}  fxe6 {[%clk 0:00:02]} 46. Kf3 {[%clk 0:00:26]}  Kd7 {[%clk 0:00:02]} 47. Kg4 {[%clk 0:00:25]}  Ke8 {[%clk 0:00:02]} 48. Bg5 {[%clk 0:00:23]}  Bf8 {[%clk 0:00:02]} 49. Bf6 {[%clk 0:00:23]}  Kf7 {[%clk 0:00:01]} 50. Kh5 {[%clk 0:00:22]} 1-0


[Site "https://www.chess.com"]

[Event "Titled Tuesday Blitz May 24 Late 2022"]
[White "Yanayt, Eugene"]
[Black "Barria Zuniga, Daniel"]
[WhiteFideId "2020165"]
[BlackFideId "3400816"]
[WhiteElo "2406"]
[BlackElo "2661"]
[Result "0-1"]
[Round "08"]
[TimeControl "180+1"]
[Date "2022.05.25"]
[WhiteClock "0:00:14"]
[BlackClock "0:00:19"]

1. e4 {[%clk 0:03:00]}  e6 {[%clk 0:02:59]} 2. d4 {[%clk 0:02:59]}  d5 {[%clk 0:02:59]} 3. Nc3 {[%clk 0:02:58]}  Bb4 {[%clk 0:02:58]} 4. e5 {[%clk 0:02:52]}  Ne7 {[%clk 0:02:57]} 5. Qg4 {[%clk 0:02:50]}  c5 {[%clk 0:02:57]} 6. Ne2 {[%clk 0:02:35]}  cxd4 {[%clk 0:02:43]} 7. Nxd4 {[%clk 0:02:22]}  Qc7 {[%clk 0:02:40]} 8. Nb5 {[%clk 0:02:07]}  Qxe5+ {[%clk 0:02:40]} 9. Be2 {[%clk 0:02:07]}  Nbc6 {[%clk 0:02:15]} 10. Bf4 {[%clk 0:01:56]}  Qf6 {[%clk 0:02:15]} 11. Bg5 {[%clk 0:01:45]}  Qe5 {[%clk 0:02:09]} 12. Bf4 {[%clk 0:01:45]}  Qf6 {[%clk 0:02:06]} 13. Nc7+ {[%clk 0:01:38]}  Kd8 {[%clk 0:02:05]} 14. Nxa8 {[%clk 0:01:36]}  e5 {[%clk 0:02:03]} 15. Qg5 {[%clk 0:01:29]}  Qxf4 {[%clk 0:01:50]} 16. Qxf4 {[%clk 0:01:26]}  exf4 {[%clk 0:01:51]} 17. O-O-O {[%clk 0:01:24]}  Bxc3 {[%clk 0:01:14]} 18. bxc3 {[%clk 0:01:23]}  Be6 {[%clk 0:01:05]} 19. Bf3 {[%clk 0:01:10]}  Kd7 {[%clk 0:01:02]} 20. Bxd5 {[%clk 0:00:59]}  Bxd5 {[%clk 0:00:58]} 21. c4 {[%clk 0:01:00]}  Rxa8 {[%clk 0:00:56]} 22. cxd5 {[%clk 0:01:00]}  Ne5 {[%clk 0:00:55]} 23. Rhe1 {[%clk 0:00:58]}  f6 {[%clk 0:00:54]} 24. h4 {[%clk 0:00:46]}  Rc8 {[%clk 0:00:47]} 25. Re4 {[%clk 0:00:42]}  f3 {[%clk 0:00:46]} 26. g4 {[%clk 0:00:39]}  h5 {[%clk 0:00:35]} 27. g5 {[%clk 0:00:38]}  N7g6 {[%clk 0:00:29]} 28. gxf6 {[%clk 0:00:32]}  gxf6 {[%clk 0:00:30]} 29. Rg1 {[%clk 0:00:31]}  Rc5 {[%clk 0:00:26]} 30. Rd4 {[%clk 0:00:30]}  Kd6 {[%clk 0:00:25]} 31. Kb2 {[%clk 0:00:27]}  Rxd5 {[%clk 0:00:24]} 32. Rxd5+ {[%clk 0:00:26]}  Kxd5 {[%clk 0:00:25]} 33. Rd1+ {[%clk 0:00:26]}  Ke6 {[%clk 0:00:24]} 34. Rd8 {[%clk 0:00:26]}  Nxh4 {[%clk 0:00:19]} 35. Rh8 {[%clk 0:00:25]}  Nhg6 {[%clk 0:00:14]} 36. Rxh5 {[%clk 0:00:24]}  Ng4 {[%clk 0:00:14]} 37. Rb5 {[%clk 0:00:23]}  b6 {[%clk 0:00:11]} 38. Rb3 {[%clk 0:00:22]}  N6e5 {[%clk 0:00:11]} 39. Kc1 {[%clk 0:00:18]}  Nxf2 {[%clk 0:00:11]} 40. Kd2 {[%clk 0:00:18]}  Nfg4 {[%clk 0:00:10]} 41. Ke1 {[%clk 0:00:18]}  Kf5 {[%clk 0:00:10]} 42. Rb4 {[%clk 0:00:17]}  Ne3 {[%clk 0:00:06]} 43. Kf2 {[%clk 0:00:15]}  Nxc2 {[%clk 0:00:06]} 44. Ra4 {[%clk 0:00:15]}  a5 {[%clk 0:00:06]} 45. Rh4 {[%clk 0:00:14]}  Nb4 {[%clk 0:00:06]} 46. a3 {[%clk 0:00:13]}  Nbd3+ {[%clk 0:00:06]} 47. Kf1 {[%clk 0:00:12]}  f2 {[%clk 0:00:06]} 48. Rh3 {[%clk 0:00:10]}  Ke4 {[%clk 0:00:06]} 49. Rh4+ {[%clk 0:00:10]}  Ke3 {[%clk 0:00:06]} 50. Rh3+ {[%clk 0:00:09]}  Nf3 {[%clk 0:00:06]} 51. a4 {[%clk 0:00:09]}  Ne5 {[%clk 0:00:06]} 52. Rg3 {[%clk 0:00:08]}  f5 {[%clk 0:00:06]} 53. Rh3 {[%clk 0:00:08]}  f4 {[%clk 0:00:07]} 54. Kg2 {[%clk 0:00:05]}  Ke2 {[%clk 0:00:06]} 55. Rh1 {[%clk 0:00:05]}  Nd2 {[%clk 0:00:06]} 56. Ra1 {[%clk 0:00:02]}  f1=Q+ {[%clk 0:00:07]} 57. Rxf1 {[%clk 0:00:02]}  Nxf1 {[%clk 0:00:07]} 58. Kh1 {[%clk 0:00:02]}  Nc6 {[%clk 0:00:08]} 59. Kg2 {[%clk 0:00:03]}  Nd2 {[%clk 0:00:08]} 60. Kh3 {[%clk 0:00:03]}  Nc4 {[%clk 0:00:09]} 61. Kg4 {[%clk 0:00:04]}  Kd3 {[%clk 0:00:10]} 62. Kxf4 {[%clk 0:00:04]}  Kc3 {[%clk 0:00:11]} 63. Ke4 {[%clk 0:00:05]}  Kb4 {[%clk 0:00:12]} 64. Kd5 {[%clk 0:00:05]}  Kxa4 {[%clk 0:00:12]} 65. Kxc4 {[%clk 0:00:06]}  Ka3 {[%clk 0:00:12]} 66. Kc3 {[%clk 0:00:07]}  Ka4 {[%clk 0:00:12]} 67. Kc2 {[%clk 0:00:07]}  Na7 {[%clk 0:00:12]} 68. Kb2 {[%clk 0:00:08]}  Kb5 {[%clk 0:00:13]} 69. Kb3 {[%clk 0:00:09]}  Ka6 {[%clk 0:00:14]} 70. Kc3 {[%clk 0:00:09]}  b5 {[%clk 0:00:15]} 71. Kb3 {[%clk 0:00:10]}  Nc8 {[%clk 0:00:15]} 72. Kb2 {[%clk 0:00:11]}  Kb6 {[%clk 0:00:16]} 73. Kc2 {[%clk 0:00:12]}  Kc5 {[%clk 0:00:17]} 74. Kc3 {[%clk 0:00:12]}  b4+ {[%clk 0:00:18]} 75. Kb3 {[%clk 0:00:13]}  Kb5 {[%clk 0:00:18]} 76. Kb2 {[%clk 0:00:14]}  a4 {[%clk 0:00:19]} 77. Ka2 {[%clk 0:00:14]}  Kc4 {[%clk 0:00:20]} 78. Kb2 {[%clk 0:00:15]}  a3+ {[%clk 0:00:21]} 79. Kc1 {[%clk 0:00:16]}  b3 {[%clk 0:00:21]} 80. Kb1 {[%clk 0:00:16]}  Kc3 {[%clk 0:00:20]} 81. Ka1 {[%clk 0:00:16]}  b2+ {[%clk 0:00:20]} 82. Ka2 {[%clk 0:00:16]}  Kc2 {[%clk 0:00:20]} 83. Kxa3 {[%clk 0:00:14]}  b1=Q {[%clk 0:00:20]} 84. Ka4 {[%clk 0:00:14]}  Qb6 {[%clk 0:00:19]} 85. Ka3 {[%clk 0:00:14]}  Qb5 {[%clk 0:00:20]} 86. Ka2 {[%clk 0:00:14]}  Qa5# {[%clk 0:00:19]} 0-1


[Site "https://www.chess.com"]

[Event "Titled Tuesday Blitz May 24 Late 2022"]
[White "Yurovskykh, Oleksandr"]
[Black "Sibilio, Mario"]
[WhiteFideId "14134020"]
[BlackFideId "800422"]
[WhiteElo "2292"]
[BlackElo "2296"]
[Result "1-0"]
[Round "08"]
[TimeControl "180+1"]
[Date "2022.05.25"]
[WhiteClock "0:00:44"]
[BlackClock "0:00:01"]

1. d4 {[%clk 0:03:00]}  d6 {[%clk 0:02:54]} 2. c4 {[%clk 0:02:58]}  g6 {[%clk 0:02:52]} 3. e4 {[%clk 0:02:57]}  Bg7 {[%clk 0:02:51]} 4. Nc3 {[%clk 0:02:57]}  Nc6 {[%clk 0:02:47]} 5. Be3 {[%clk 0:02:50]}  e5 {[%clk 0:02:46]} 6. d5 {[%clk 0:02:51]}  Nce7 {[%clk 0:02:39]} 7. h4 {[%clk 0:02:43]}  Nf6 {[%clk 0:02:24]} 8. Be2 {[%clk 0:02:42]}  c5 {[%clk 0:01:47]} 9. h5 {[%clk 0:02:39]}  Nxh5 {[%clk 0:01:40]} 10. Bxh5 {[%clk 0:02:38]}  gxh5 {[%clk 0:01:39]} 11. Qxh5 {[%clk 0:02:39]}  Ng6 {[%clk 0:01:38]} 12. Nge2 {[%clk 0:02:33]}  Bd7 {[%clk 0:01:34]} 13. Ng3 {[%clk 0:02:32]}  Nf4 {[%clk 0:01:21]} 14. Bxf4 {[%clk 0:02:22]}  exf4 {[%clk 0:01:19]} 15. Nf5 {[%clk 0:02:23]}  Bxf5 {[%clk 0:01:10]} 16. Qxf5 {[%clk 0:02:21]}  Qf6 {[%clk 0:00:57]} 17. Rxh7 {[%clk 0:01:56]}  Rxh7 {[%clk 0:00:51]} 18. Qxh7 {[%clk 0:01:57]}  Ke7 {[%clk 0:00:50]} 19. O-O-O {[%clk 0:01:50]}  Rh8 {[%clk 0:00:46]} 20. Qf5 {[%clk 0:01:50]}  Qxf5 {[%clk 0:00:38]} 21. exf5 {[%clk 0:01:51]}  Bxc3 {[%clk 0:00:37]} 22. bxc3 {[%clk 0:01:50]}  Rh2 {[%clk 0:00:35]} 23. Rg1 {[%clk 0:01:50]}  Kf6 {[%clk 0:00:24]} 24. Kd2 {[%clk 0:01:44]}  f3 {[%clk 0:00:24]} 25. gxf3 {[%clk 0:01:37]}  Rxf2+ {[%clk 0:00:22]} 26. Ke3 {[%clk 0:01:38]}  Rxa2 {[%clk 0:00:18]} 27. Rg8 {[%clk 0:01:35]}  Rc2 {[%clk 0:00:09]} 28. Kd3 {[%clk 0:01:32]}  Rf2 {[%clk 0:00:09]} 29. Ke4 {[%clk 0:01:03]}  Re2+ {[%clk 0:00:08]} 30. Kf4 {[%clk 0:00:55]}  Re5 {[%clk 0:00:07]} 31. Rd8 {[%clk 0:00:49]}  Rxf5+ {[%clk 0:00:05]} 32. Ke4 {[%clk 0:00:49]}  Re5+ {[%clk 0:00:05]} 33. Kd3 {[%clk 0:00:44]}  Ke7 {[%clk 0:00:03]} 34. Rb8 {[%clk 0:00:44]}  b6 {[%clk 0:00:02]} 35. Rb7+ {[%clk 0:00:45]}  Ke8 {[%clk 0:00:02]} 36. Rxa7 {[%clk 0:00:46]}  b5 {[%clk 0:00:02]} 37. cxb5 {[%clk 0:00:43]}  Rxd5+ {[%clk 0:00:01]} 38. Kc4 {[%clk 0:00:44]} 1-0


[Site "https://www.chess.com"]

[Event "Titled Tuesday Blitz May 24 Late 2022"]
[White "Adewumi, Tanitoluwa"]
[Black "Levine, David"]
[WhiteFideId "30966396"]
[BlackFideId "2011611"]
[WhiteElo "2514"]
[BlackElo "2152"]
[Result "1-0"]
[Round "09"]
[TimeControl "180+1"]
[Date "2022.05.25"]
[WhiteClock "0:01:23"]
[BlackClock "0:00:01"]

1. e4 {[%clk 0:03:00]}  e5 {[%clk 0:02:56]} 2. Bc4 {[%clk 0:02:59]}  Nf6 {[%clk 0:02:54]} 3. Nc3 {[%clk 0:02:59]}  Nxe4 {[%clk 0:02:53]} 4. Qh5 {[%clk 0:02:58]}  Nd6 {[%clk 0:02:47]} 5. Bb3 {[%clk 0:02:58]}  Be7 {[%clk 0:02:46]} 6. Nf3 {[%clk 0:02:56]}  Nc6 {[%clk 0:02:31]} 7. Nxe5 {[%clk 0:02:55]}  Nxe5 {[%clk 0:02:30]} 8. Qxe5 {[%clk 0:02:56]}  O-O {[%clk 0:02:30]} 9. O-O {[%clk 0:02:55]}  Bf6 {[%clk 0:02:30]} 10. Qf4 {[%clk 0:02:55]}  Ne8 {[%clk 0:02:16]} 11. d4 {[%clk 0:02:53]}  c6 {[%clk 0:02:12]} 12. d5 {[%clk 0:02:49]}  d6 {[%clk 0:02:05]} 13. Be3 {[%clk 0:02:34]}  c5 {[%clk 0:02:00]} 14. Rae1 {[%clk 0:02:26]}  g6 {[%clk 0:01:50]} 15. Bc1 {[%clk 0:02:14]}  Bg7 {[%clk 0:01:47]} 16. Ne4 {[%clk 0:02:08]}  a6 {[%clk 0:01:40]} 17. c3 {[%clk 0:02:05]}  b5 {[%clk 0:01:33]} 18. Bc2 {[%clk 0:02:05]}  Bf5 {[%clk 0:01:28]} 19. Qg3 {[%clk 0:01:58]}  Bxe4 {[%clk 0:01:20]} 20. Bxe4 {[%clk 0:01:59]}  Nf6 {[%clk 0:01:19]} 21. Bf3 {[%clk 0:02:00]}  b4 {[%clk 0:01:03]} 22. Bf4 {[%clk 0:01:56]}  Ne8 {[%clk 0:00:55]} 23. cxb4 {[%clk 0:01:55]}  cxb4 {[%clk 0:00:52]} 24. b3 {[%clk 0:01:55]}  a5 {[%clk 0:00:53]} 25. Be2 {[%clk 0:01:53]}  Qb6 {[%clk 0:00:51]} 26. Bc4 {[%clk 0:01:51]}  a4 {[%clk 0:00:43]} 27. bxa4 {[%clk 0:01:47]}  Rxa4 {[%clk 0:00:37]} 28. Bb3 {[%clk 0:01:47]}  Ra5 {[%clk 0:00:37]} 29. Rc1 {[%clk 0:01:41]}  Bc3 {[%clk 0:00:24]} 30. Rxc3 {[%clk 0:01:41]}  bxc3 {[%clk 0:00:24]} 31. Qxc3 {[%clk 0:01:42]}  Qc5 {[%clk 0:00:17]} 32. Qb2 {[%clk 0:01:36]}  Qa3 {[%clk 0:00:16]} 33. Qa1 {[%clk 0:01:32]}  f6 {[%clk 0:00:11]} 34. Qe1 {[%clk 0:01:30]}  Ra7 {[%clk 0:00:07]} 35. Qe6+ {[%clk 0:01:29]}  Rff7 {[%clk 0:00:07]} 36. Qxe8+ {[%clk 0:01:29]}  Kg7 {[%clk 0:00:07]} 37. h4 {[%clk 0:01:28]}  Rfe7 {[%clk 0:00:04]} 38. Qd8 {[%clk 0:01:27]}  Rad7 {[%clk 0:00:04]} 39. Qc8 {[%clk 0:01:26]}  Qa7 {[%clk 0:00:01]} 40. h5 {[%clk 0:01:23]} 1-0


[Site "https://www.chess.com"]

[Event "Titled Tuesday Blitz May 24 Late 2022"]
[White "Al-Tarboush, Ward"]
[Black "Senthilkumar, Pranav"]
[WhiteFideId "7601450"]
[BlackFideId "2083477"]
[WhiteElo "2294"]
[BlackElo "2429"]
[Result "1-0"]
[Round "09"]
[TimeControl "180+1"]
[Date "2022.05.25"]
[WhiteClock "0:01:24"]
[BlackClock "0:01:02"]

1. e4 {[%clk 0:03:00]}  c5 {[%clk 0:02:59]} 2. Nf3 {[%clk 0:02:59]}  e6 {[%clk 0:02:59]} 3. d4 {[%clk 0:03:00]}  cxd4 {[%clk 0:03:00]} 4. Nxd4 {[%clk 0:03:00]}  Nc6 {[%clk 0:03:00]} 5. Nc3 {[%clk 0:03:00]}  Qc7 {[%clk 0:03:00]} 6. Be3 {[%clk 0:02:55]}  a6 {[%clk 0:03:00]} 7. Qd2 {[%clk 0:02:54]}  Nf6 {[%clk 0:03:00]} 8. f3 {[%clk 0:02:55]}  Be7 {[%clk 0:03:00]} 9. g4 {[%clk 0:02:55]}  O-O {[%clk 0:02:58]} 10. h4 {[%clk 0:02:55]}  b5 {[%clk 0:02:56]} 11. h5 {[%clk 0:02:55]}  d6 {[%clk 0:02:54]} 12. g5 {[%clk 0:02:54]}  Nd7 {[%clk 0:02:54]} 13. g6 {[%clk 0:02:53]}  Nde5 {[%clk 0:02:53]} 14. O-O-O {[%clk 0:02:49]}  b4 {[%clk 0:02:36]} 15. h6 {[%clk 0:02:39]}  fxg6 {[%clk 0:02:25]} 16. hxg7 {[%clk 0:02:37]}  Rf7 {[%clk 0:02:25]} 17. Rxh7 {[%clk 0:01:38]}  bxc3 {[%clk 0:02:07]} 18. Rh8+ {[%clk 0:01:28]}  Kxg7 {[%clk 0:02:07]} 19. Qh2 {[%clk 0:01:29]}  cxb2+ {[%clk 0:01:56]} 20. Kb1 {[%clk 0:01:28]}  Bb7 {[%clk 0:01:05]} 21. Qh6+ {[%clk 0:01:23]}  Kf6 {[%clk 0:01:02]} 22. Bg5# {[%clk 0:01:24]} 1-0


[Site "https://www.chess.com"]

[Event "Titled Tuesday Blitz May 24 Late 2022"]
[White "Avramidou, Anastasia"]
[Black "Djokic, Mihailo"]
[WhiteFideId "4239873"]
[BlackFideId "976440"]
[WhiteElo "2183"]
[BlackElo "2202"]
[Result "1-0"]
[Round "09"]
[TimeControl "180+1"]
[Date "2022.05.24"]
[WhiteClock "0:00:04"]
[BlackClock "0:00:59"]

1. c4 {[%clk 0:02:51]}  e5 {[%clk 0:02:59]} 2. Nc3 {[%clk 0:02:51]}  Nc6 {[%clk 0:03:00]} 3. g3 {[%clk 0:02:51]}  Bc5 {[%clk 0:03:00]} 4. Bg2 {[%clk 0:02:52]}  d6 {[%clk 0:03:00]} 5. Nf3 {[%clk 0:02:52]}  Bf5 {[%clk 0:03:00]} 6. O-O {[%clk 0:02:53]}  a6 {[%clk 0:03:00]} 7. a3 {[%clk 0:02:52]}  Ba7 {[%clk 0:02:59]} 8. b4 {[%clk 0:02:51]}  Nf6 {[%clk 0:02:58]} 9. d3 {[%clk 0:02:51]}  O-O {[%clk 0:02:58]} 10. e4 {[%clk 0:02:51]}  Bg4 {[%clk 0:02:58]} 11. h3 {[%clk 0:02:52]}  Bxf3 {[%clk 0:02:58]} 12. Bxf3 {[%clk 0:02:52]}  Nd4 {[%clk 0:02:53]} 13. Bg2 {[%clk 0:02:52]}  Nd7 {[%clk 0:02:52]} 14. Kh1 {[%clk 0:02:49]}  c6 {[%clk 0:02:49]} 15. f4 {[%clk 0:02:46]}  f5 {[%clk 0:02:48]} 16. exf5 {[%clk 0:02:45]}  Nxf5 {[%clk 0:02:48]} 17. Qe1 {[%clk 0:02:37]}  Bd4 {[%clk 0:02:46]} 18. Bd2 {[%clk 0:02:33]}  exf4 {[%clk 0:02:45]} 19. Rxf4 {[%clk 0:02:20]}  Ne5 {[%clk 0:02:41]} 20. Rd1 {[%clk 0:01:27]}  Nxd3 {[%clk 0:02:39]} 21. Qe6+ {[%clk 0:01:21]}  Kh8 {[%clk 0:02:39]} 22. Rxf5 {[%clk 0:01:17]}  Nf2+ {[%clk 0:02:27]} 23. Rxf2 {[%clk 0:01:14]}  Rxf2 {[%clk 0:02:21]} 24. Ne4 {[%clk 0:01:10]}  Rf8 {[%clk 0:02:13]} 25. Bg5 {[%clk 0:01:07]}  Qb6 {[%clk 0:01:56]} 26. Nxd6 {[%clk 0:00:58]}  Bf6 {[%clk 0:01:51]} 27. Bf4 {[%clk 0:00:39]}  g6 {[%clk 0:01:35]} 28. Bh6 {[%clk 0:00:22]}  Bg7 {[%clk 0:01:34]} 29. Bxg7+ {[%clk 0:00:17]}  Kxg7 {[%clk 0:01:34]} 30. Qe5+ {[%clk 0:00:13]}  Kg8 {[%clk 0:01:27]} 31. Ne4 {[%clk 0:00:08]}  c5 {[%clk 0:01:27]} 32. bxc5 {[%clk 0:00:07]}  Qb3 {[%clk 0:01:22]} 33. Rd7 {[%clk 0:00:04]}  Rf7 {[%clk 0:01:10]} 34. Nf6+ {[%clk 0:00:04]}  Kf8 {[%clk 0:01:03]} 35. Rxf7+ {[%clk 0:00:03]}  Kxf7 {[%clk 0:01:03]} 36. Bd5+ {[%clk 0:00:03]}  Kg7 {[%clk 0:01:00]} 37. Ng4+ {[%clk 0:00:04]}  Kf8 {[%clk 0:00:59]} 38. Qf6+ {[%clk 0:00:03]}  Ke8 {[%clk 0:01:00]} 39. Bf7+ {[%clk 0:00:03]}  Kd7 {[%clk 0:01:00]} 40. Qe6+ {[%clk 0:00:04]}  Kc7 {[%clk 0:00:59]} 41. Qe7+ {[%clk 0:00:04]}  Kc6 {[%clk 0:00:59]} 42. Bd5# {[%clk 0:00:04]} 1-0


[Site "https://www.chess.com"]

[Event "Titled Tuesday Blitz May 24 Late 2022"]
[White "Barria Zuniga, Daniel"]
[Black "Proudian, Armen"]
[WhiteFideId "3400816"]
[BlackFideId "2130734"]
[WhiteElo "2414"]
[BlackElo "2380"]
[Result "0-1"]
[Round "09"]
[TimeControl "180+1"]
[Date "2022.05.24"]
[WhiteClock "0:00:02"]
[BlackClock "0:00:17"]

1. c4 {[%clk 0:03:00]}  Nf6 {[%clk 0:02:59]} 2. Nc3 {[%clk 0:02:58]}  c5 {[%clk 0:02:58]} 3. g3 {[%clk 0:02:58]}  b6 {[%clk 0:02:57]} 4. Bg2 {[%clk 0:02:58]}  Nc6 {[%clk 0:02:57]} 5. Nh3 {[%clk 0:02:53]}  Bb7 {[%clk 0:02:56]} 6. O-O {[%clk 0:02:53]}  g6 {[%clk 0:02:56]} 7. e3 {[%clk 0:02:48]}  Bg7 {[%clk 0:02:56]} 8. d4 {[%clk 0:02:49]}  O-O {[%clk 0:02:51]} 9. b3 {[%clk 0:02:39]}  cxd4 {[%clk 0:02:44]} 10. exd4 {[%clk 0:02:39]}  d5 {[%clk 0:02:44]} 11. Nxd5 {[%clk 0:02:26]}  Nxd5 {[%clk 0:02:21]} 12. Bxd5 {[%clk 0:02:26]}  Bxd4 {[%clk 0:02:19]} 13. Bh6 {[%clk 0:02:23]}  Re8 {[%clk 0:02:08]} 14. Ng5 {[%clk 0:01:52]}  e6 {[%clk 0:02:08]} 15. Bg2 {[%clk 0:01:13]}  Na5 {[%clk 0:01:58]} 16. Bxb7 {[%clk 0:00:44]}  Nxb7 {[%clk 0:01:59]} 17. Qf3 {[%clk 0:00:43]}  Qf6 {[%clk 0:01:47]} 18. Rad1 {[%clk 0:00:40]}  Qxf3 {[%clk 0:01:43]} 19. Nxf3 {[%clk 0:00:41]}  Bf6 {[%clk 0:01:42]} 20. Rd2 {[%clk 0:00:16]}  Rad8 {[%clk 0:01:40]} 21. Rfd1 {[%clk 0:00:16]}  Rxd2 {[%clk 0:01:37]} 22. Rxd2 {[%clk 0:00:17]}  Rd8 {[%clk 0:01:38]} 23. Rxd8+ {[%clk 0:00:17]}  Nxd8 {[%clk 0:01:37]} 24. Be3 {[%clk 0:00:17]}  Nc6 {[%clk 0:01:37]} 25. Kf1 {[%clk 0:00:16]}  Nb4 {[%clk 0:01:35]} 26. a4 {[%clk 0:00:14]}  Nc6 {[%clk 0:01:21]} 27. Bd2 {[%clk 0:00:12]}  Kf8 {[%clk 0:01:19]} 28. Ke2 {[%clk 0:00:12]}  Ke7 {[%clk 0:01:20]} 29. Kd3 {[%clk 0:00:12]}  Kd6 {[%clk 0:01:18]} 30. b4 {[%clk 0:00:12]}  e5 {[%clk 0:01:16]} 31. b5 {[%clk 0:00:12]}  Nd8 {[%clk 0:01:15]} 32. Bb4+ {[%clk 0:00:11]}  Ke6 {[%clk 0:01:11]} 33. c5 {[%clk 0:00:09]}  bxc5 {[%clk 0:00:37]} 34. Bxc5 {[%clk 0:00:08]}  Kd5 {[%clk 0:00:37]} 35. Bxa7 {[%clk 0:00:08]}  e4+ {[%clk 0:00:38]} 36. Ke2 {[%clk 0:00:09]}  exf3+ {[%clk 0:00:38]} 37. Kxf3 {[%clk 0:00:10]}  Nb7 {[%clk 0:00:34]} 38. Be3 {[%clk 0:00:08]}  Bc3 {[%clk 0:00:33]} 39. h4 {[%clk 0:00:06]}  f6 {[%clk 0:00:30]} 40. Kf4 {[%clk 0:00:06]}  Kc4 {[%clk 0:00:26]} 41. Ke4 {[%clk 0:00:05]}  Nd6+ {[%clk 0:00:26]} 42. Kf4 {[%clk 0:00:05]}  Be5+ {[%clk 0:00:27]} 43. Kg4 {[%clk 0:00:05]}  Kb4 {[%clk 0:00:26]} 44. b6 {[%clk 0:00:05]}  h5+ {[%clk 0:00:25]} 45. Kf3 {[%clk 0:00:04]}  Kxa4 {[%clk 0:00:25]} 46. g4 {[%clk 0:00:05]}  Kb5 {[%clk 0:00:22]} 47. gxh5 {[%clk 0:00:05]}  gxh5 {[%clk 0:00:22]} 48. Ke2 {[%clk 0:00:01]}  Kc6 {[%clk 0:00:18]} 49. Kd3 {[%clk 0:00:02]}  f5 {[%clk 0:00:16]} 50. f4 {[%clk 0:00:02]}  Bf6 {[%clk 0:00:17]} 51. Bf2 {[%clk 0:00:02]}  Bd8 {[%clk 0:00:17]} 52. Ke2 {[%clk 0:00:02]}  Bxb6 {[%clk 0:00:17]} 53. Ke1 {[%clk 0:00:02]}  Bxf2+ {[%clk 0:00:17]} 0-1


[Site "https://www.chess.com"]